bitfinex/quotes_SOLUSD_20260214
["timestamp","ask_amount","ask_price","bid_price","bid_amount"]
[1771034567545,11.77232326,84.945,84.911,0.45542606]
[1771034567546,0.45239889,84.937,84.911,0.45542606]
[1771034569555,0.45239889,84.935,84.901,0.45542606]
[1771034573361,11.77384792,84.934,84.901,0.45542606]
[1771034573659,0.45239889,84.933,84.901,0.45542606]
[1771034575363,0.45239889,84.931,84.901,0.45542606]
[1771034579255,0.45239889,84.929,84.901,0.45542606]
[1771034579452,11.77440244,84.93,84.901,0.45542606]
[1771034580365,11.77440244,84.93,84.911,0.45542606]
[1771034581456,11.77367161,84.936,84.911,0.45542606]
[1771034581663,11.77367161,84.936,84.921,0.46009358]
[1771034581953,0.4555582,84.943,84.921,0.46009358]
[1771034582770,0.4555582,84.947,84.921,0.46009358]
[1771034584067,0.4555582,84.952,84.921,0.46009358]
[1771034585568,11.77093755,84.955,84.93,3.55375945]
[1771034585762,0.4555582,84.954,84.931,0.46009358]
[1771034587273,0.4555582,84.961,84.931,0.46009358]
[1771034587460,12.22497184,84.966,84.941,0.46009358]
[1771034589178,0.4555582,84.972,84.951,0.46009358]
[1771034589479,0.4555582,84.984,84.951,0.46009358]
[1771034590385,0.4555582,84.982,84.951,0.46009358]
[1771034593988,60.96,84.985,84.951,0.46009358]
[1771034593989,0.4555582,84.98,84.951,0.46009358]
[1771034599786,11.76761317,84.979,84.951,0.46009358]
[1771034599994,0.4555582,84.978,84.951,0.46009358]
[1771034602790,11.76789013,84.977,84.951,0.46009358]
[1771034602992,0.4555582,84.976,84.951,0.46009358]
[1771034605685,0.4555582,84.974,84.951,0.46009358]
[1771034606679,11.76624302,84.989,84.961,0.46009358]
[1771034606874,0.4555582,84.987,84.961,0.46009358]
[1771034609398,0.4555582,84.985,84.961,0.46009358]
[1771034611193,3.75375945,85.0,84.961,0.46009358]
[1771034611194,0.46554786,84.999,84.97,3.55375945]
[1771034611400,0.46554786,84.999,84.981,0.48306284]
[1771034615195,0.46554786,84.997,84.981,0.48306284]
[1771034618313,0.48991745,84.995,84.981,0.48306284]
[1771034618607,0.48991745,84.995,84.977,0.45583034]
[1771034623112,0.48991745,84.995,84.977,0.45583034]
[1771034623309,0.48991745,84.999,84.977,0.45583034]
[1771034623489,0.2,85.0,84.981,0.45583034]
[1771034623689,0.48991745,84.999,84.981,0.45583034]
[1771034624603,0.2,85.0,84.991,0.45583034]
[1771034624788,0.2,85.0,84.95,52.67375945]
[1771034624789,11.76126463,85.025,85.001,0.45583034]
[1771034624988,12.25118208,85.025,85.001,0.2558304]
[1771034625191,0.48991745,85.024,85.001,0.2558304]
[1771034626292,0.48991745,85.022,85.001,0.2558304]
[1771034627013,11.96064473,85.03,85.011,0.45583034]
[1771034628300,12.45056218,85.03,85.011,0.45583034]
[1771034629817,0.48991745,85.029,85.011,0.45583034]
[1771034631619,0.48991745,85.027,85.01,3.55375945]
[1771034632620,0.48991745,85.025,85.001,0.45583034]
[1771034634509,0.48991745,85.023,85.001,0.45583034]
[1771034634921,0.48991745,85.023,85.0,3.55375945]
[1771034635127,0.48991745,85.023,84.996,0.45583034]
[1771034635529,0.48991745,85.023,85.0,4.00958979]
[1771034635735,0.48991745,85.023,85.001,0.45583034]
[1771034636602,11.76166168,85.022,85.001,0.45583034]
[1771034636801,0.48991745,85.021,85.001,0.45583034]
[1771034639734,11.76193836,85.02,85.001,0.45583034]
[1771034639938,0.48991745,85.019,85.001,0.45583034]
[1771034640339,0.48991745,85.019,84.99,3.55375945]
[1771034640542,11.76193836,85.02,85.001,0.45583034]
[1771034642228,0.2,85.03,85.011,0.49801128]
[1771034642442,0.68297864,85.03,85.011,0.49801128]
[1771034642754,0.48297864,85.028,85.011,0.49801128]
[1771034643548,0.48297864,85.028,85.006,0.49801128]
[1771034643752,0.48297864,85.026,85.001,0.49801128]
[1771034644532,0.48297864,85.026,84.993,0.49801128]
[1771034646639,0.48297864,85.024,84.988,0.49801128]
[1771034646842,0.48297864,85.019,84.988,0.49801128]
[1771034650540,0.48297864,85.017,84.991,0.49801128]
[1771034650753,11.76153623,85.023,85.0,3.54586167]
[1771034651071,0.48297864,85.022,84.996,0.49801128]
[1771034652140,0.48297864,85.022,84.981,0.49801128]
[1771034652663,11.76153623,85.023,84.981,0.49801128]
[1771034652664,0.48297864,85.02,84.981,0.49801128]
[1771034654443,0.48297864,85.018,84.981,0.49801128]
[1771034657560,3.54586167,85.02,84.981,0.49801128]
[1771034657561,0.48297864,85.016,84.981,0.49801128]
[1771034660065,11.76263012,85.015,84.981,0.49801128]
[1771034660369,0.48297864,85.014,84.981,0.49801128]
[1771034664067,0.48297864,85.014,84.991,0.49801128]
[1771034664245,0.48297864,85.012,84.991,0.49801128]
[1771034668664,0.48297864,85.01,84.991,0.49801128]
[1771034669865,11.76346033,85.009,84.974,61.9]
[1771034670072,11.76346033,85.009,84.973,11.76844409]
[1771034670468,0.48297864,85.008,84.975,0.49801128]
[1771034670773,0.48297864,84.999,84.967,0.49801128]
[1771034672072,0.46920402,84.989,84.967,0.49801128]
[1771034672450,3.54586167,84.98,84.955,0.45222552]
[1771034672652,0.46920402,84.979,84.955,0.45222552]
[1771034676878,0.46920402,84.986,84.955,0.45222552]
[1771034677677,0.46920402,84.984,84.955,0.45222552]
[1771034679680,0.49480459,84.982,84.955,0.45222552]
[1771034679873,0.49480459,84.979,84.955,0.45222552]
[1771034686089,0.49480459,84.995,84.955,0.45222552]
[1771034686389,0.49480459,84.999,84.961,0.49159165]
[1771034686681,0.49480459,84.998,84.961,0.49159165]
[1771034686982,0.49480459,84.989,84.961,0.49159165]
[1771034687174,0.49480459,84.979,84.961,0.49159165]
[1771034687376,0.49480459,84.979,84.953,0.49159165]
[1771034699295,29.41211073,84.999,84.943,61.9]
[1771034699296,0.49480459,85.001,84.971,0.49159165]
[1771034699602,0.49480459,84.999,84.971,0.49159165]
[1771034700395,11.7649827,84.998,84.971,0.49159165]
[1771034700594,0.49480459,84.997,84.971,0.49159165]
[1771034702801,0.45258403,84.989,84.954,0.48331575]
[1771034703698,0.45258403,84.987,84.954,0.48331575]
[1771034703897,0.45258403,84.979,84.942,0.48331575]
[1771034704382,0.45258403,84.969,84.937,0.48331575]
[1771034704883,0.45258403,84.969,84.936,11.77354767]
[1771034704884,0.45258403,84.969,84.933,49.62]
[1771034705083,0.45258403,84.969,84.933,0.48331575]
[1771034707003,11.76913661,84.968,84.933,0.48331575]
[1771034707208,0.45258403,84.967,84.933,0.48331575]
[1771034713086,0.45258403,84.965,84.933,0.48331575]
[1771034717001,11.76969069,84.964,84.933,0.48331575]
[1771034717203,0.45258403,84.963,84.933,0.48331575]
[1771034718691,0.45258403,84.959,84.921,0.48331575]
[1771034719302,0.45258403,84.959,84.921,11.77565031]
[1771034719595,0.45258403,84.959,84.922,0.48331575]
[1771034720714,0.45258403,84.959,84.924,0.48331575]
[1771034721411,0.45258403,84.959,84.924,62.38331575]
[1771034721610,0.45258403,84.968,84.93,3.55016698]
[1771034721795,0.45258403,84.968,84.931,0.48331575]
[1771034723211,0.45258403,84.966,84.931,0.48331575]
[1771034724035,29.4201431,84.976,84.931,0.48331575]
[1771034724036,0.45258403,84.976,84.95,3.55016698]
[1771034724201,0.45258403,84.976,84.951,0.48331575]
[1771034725111,0.45258403,84.974,84.942,0.48331575]
[1771034726926,0.45258403,84.974,84.943,0.48331575]
[1771034727425,0.45258403,84.974,84.951,0.48331575]
[1771034731032,0.46231336,84.972,84.939,0.46102572]
[1771034731231,0.46231336,84.972,84.941,0.46102572]
[1771034732629,0.46231336,84.97,84.941,0.46102572]
[1771034733932,0.46231336,84.969,84.936,0.46102572]
[1771034737621,0.46231336,84.967,84.936,0.46102572]
[1771034739835,0.46000248,84.965,84.936,0.46102572]
[1771034743521,0.46000248,84.963,84.936,0.46102572]
[1771034749136,0.46000248,84.979,84.941,0.49620151]
[1771034749537,0.46000248,84.979,84.951,0.49620151]
[1771034752445,0.46000248,84.985,84.953,0.49620151]
[1771034754033,0.46000248,84.985,84.95,3.55016698]
[1771034754034,0.46000248,84.959,84.921,0.49620151]
[1771034754231,0.46000248,84.959,84.931,0.49620151]
[1771034754433,0.46000248,84.969,84.931,0.49620151]
[1771034754935,0.46000248,84.967,84.931,0.49620151]
[1771034756846,0.46000248,84.967,84.941,0.49620151]
[1771034758032,11.76941364,84.966,84.941,0.49620151]
[1771034758243,0.46000248,84.965,84.941,0.49620151]
[1771034760849,0.46668414,84.973,84.941,0.49620151]
[1771034761147,0.46668414,84.978,84.951,0.48168571]
[1771034765551,29.41193535,85.0,84.951,0.48168571]
[1771034765552,0.46668414,84.992,84.971,0.48168571]
[1771034766445,0.46668414,84.992,84.967,0.48168571]
[1771034766646,0.46668414,84.99,84.967,0.48168571]
[1771034768662,0.46668414,84.995,84.967,0.48168571]
[1771034768861,0.46668414,84.995,84.96,15.31992297]
[1771034768862,0.46668414,84.995,84.971,0.48168571]
[1771034769155,0.46668414,85.002,84.971,0.48168571]
[1771034769756,0.46668414,85.002,84.968,11.76913661]
[1771034769757,12.22876085,85.019,84.991,0.48168571]
[1771034770071,0.46668414,85.018,84.991,0.48168571]
[1771034770254,0.46668414,85.018,84.98,3.54971064]
[1771034770255,0.46668414,85.018,84.981,0.48168571]
[1771034771638,0.46668414,85.016,84.991,0.48168571]
[1771034772755,0.46668414,85.014,84.991,0.48168571]
[1771034774251,11.76290684,85.013,84.991,0.48168571]
[1771034774452,0.46668414,85.023,85.001,0.48168571]
[1771034774758,0.46668414,85.023,84.996,0.48168571]
[1771034774938,0.46668414,85.023,84.99,3.54971064]
[1771034775145,0.46668414,85.019,84.984,0.48168571]
[1771034776553,0.46668414,85.017,84.984,0.48168571]
[1771034776856,0.46668414,85.017,84.98,3.54971064]
[1771034778653,0.46668414,85.015,84.98,3.54971064]
[1771034779247,0.46668414,85.015,84.981,0.48168571]
[1771034780353,11.76249176,85.016,84.96,29.4253769]
[1771034780354,0.46668414,85.009,84.971,0.48168571]
[1771034781248,11.76359872,85.008,84.971,0.48168571]
[1771034781461,0.46668414,85.007,84.971,0.48168571]
[1771034784464,0.46668414,85.005,84.971,0.48168571]
[1771034787764,0.46668414,84.999,84.971,0.48168571]
[1771034787969,0.46668414,84.999,84.964,0.48168571]
[1771034789155,0.46668414,84.999,84.971,0.48168571]
[1771034791175,0.48926669,84.997,84.971,0.48168571]
[1771034795378,0.48926669,84.995,84.971,0.48168571]
[1771034824385,0.46960097,84.989,84.95,3.54971064]
[1771034824582,0.46960097,84.989,84.951,0.47292229]
[1771034825596,0.46960097,84.987,84.951,0.47292229]
[1771034827003,0.46960097,84.985,84.951,0.47292229]
[1771034828604,3.55027536,84.99,84.951,0.47292229]
[1771034828605,0.46960097,84.983,84.951,0.47292229]
[1771034833389,0.46960097,84.981,84.951,0.47292229]
[1771034837285,0.46960097,84.981,84.961,0.47292229]
[1771034839491,11.76747469,84.98,84.961,0.47292229]
[1771034839812,0.46960097,84.979,84.961,0.47292229]
[1771034864345,0.4762954,84.977,84.951,0.48204015]
[1771034918275,0.4762954,84.977,84.95,3.54973676]
[1771034918276,0.45422698,84.976,84.94,61.9]
[1771034918481,11.76796315,84.977,84.938,50.78]
[1771034918482,0.45422698,84.959,84.938,50.78]
[1771034918667,0.45422698,84.949,84.911,52.8]
[1771034918980,0.45422698,84.949,84.912,0.45367334]
[1771034920066,0.45422698,84.947,84.912,0.45367334]
[1771034923276,0.45422698,84.945,84.912,0.45367334]
[1771034938804,0.45422698,84.945,84.913,0.45367334]
[1771034938987,0.45422698,84.979,84.931,0.45367334]
[1771034939190,0.45422698,84.979,84.951,0.45367334]
[1771034939903,11.76761317,84.979,84.951,0.45367334]
[1771034940703,0.45422698,84.978,84.951,0.45367334]
[1771034941413,0.4589931,84.982,84.961,0.46604761]
[1771034942206,0.4589931,84.982,84.96,3.54973676]
[1771034942415,0.4589931,84.986,84.961,0.46604761]
[1771034944425,0.4589931,84.984,84.961,0.46604761]
[1771034945223,0.4589931,85.018,84.971,0.46604761]
[1771034945436,0.4589931,85.018,84.981,0.46604761]
[1771034945741,0.4589931,85.018,84.991,0.46604761]
[1771034945907,0.4589931,85.018,85.001,0.46604761]
[1771034946104,0.4589931,85.025,85.001,0.46604761]
[1771034946515,0.4589931,85.023,85.0,3.54973676]
[1771034946715,0.4589931,85.023,84.99,3.54973676]
[1771034947130,0.4589931,85.023,84.986,0.46604761]
[1771034947826,0.4589931,85.023,84.99,3.54973676]
[1771034948435,0.4589931,85.021,84.991,0.46604761]
[1771034949426,0.4589931,85.021,84.99,3.54640444]
[1771034952633,0.4589931,85.021,84.99,4.01245205]
[1771034953339,0.4589931,85.021,84.991,0.46604761]
[1771034953642,0.4589931,85.019,84.991,0.46604761]
[1771034962644,0.4589931,85.017,84.991,0.46604761]
[1771034962947,0.4589931,85.017,84.985,61.9]
[1771034965151,0.4589931,85.015,84.985,61.9]
[1771034967735,0.4589931,85.009,84.985,61.9]
[1771034969232,11.76359872,85.008,84.984,0.46604761]
[1771034969444,0.4589931,85.007,84.984,0.46604761]
[1771034972954,0.47334217,85.005,84.984,0.46604761]
[1771034976138,0.47334217,85.003,84.984,0.46604761]
[1771034980863,11.76442907,85.002,84.984,0.46604761]
[1771034981065,0.46287026,85.001,84.984,0.46604761]
[1771034990969,0.46287026,85.019,84.991,0.47318913]
[1771034993973,0.46287026,85.017,84.991,0.47318913]
[1771034995248,0.2,85.03,85.011,0.47318913]
[1771034995453,0.46287026,85.029,85.011,0.47318913]
[1771034995656,0.46287026,85.029,84.993,0.47318913]
[1771034997273,0.46287026,85.027,84.993,0.47318913]
[1771034998268,0.46287026,85.027,85.0,3.54640444]
[1771034998461,0.46287026,85.027,85.001,0.47318913]
[1771035000376,0.46287026,85.025,85.001,0.47318913]
[1771035001781,0.2,85.03,85.011,0.47763679]
[1771035001975,0.2,85.03,85.021,0.47763679]
[1771035002187,0.48213655,85.042,85.022,0.33058783]
[1771035002560,11.75903387,85.041,85.022,0.33058783]
[1771035004377,11.75903387,85.041,84.99,29.41519989]
[1771035004378,0.48213655,85.055,85.031,0.33058783]
[1771035005075,11.95783154,85.05,85.031,0.33058783]
[1771035005474,12.43996809,85.05,85.031,0.33058783]
[1771035005673,0.48213655,85.049,85.021,0.33058783]
[1771035007084,0.48213655,85.049,85.031,0.33058783]
[1771035008083,0.1,85.06,85.04,3.54640444]
[1771035008262,0.1,85.06,85.021,11.76180002]
[1771035008263,0.1,85.06,85.05,3.54640444]
[1771035008574,3.3690751,85.09,85.051,0.47763679]
[1771035008958,3.54158082,85.09,85.051,0.47763679]
[1771035009168,3.54158082,85.08,85.017,0.47763679]
[1771035009469,3.54158082,85.06,85.021,0.47763679]
[1771035010688,0.48213655,85.084,85.051,0.47763679]
[1771035010982,11.75295292,85.085,85.022,29.40415421]
[1771035010983,0.48213655,85.069,85.035,0.47763679]
[1771035011179,0.48213655,85.059,85.022,0.47763679]
[1771035012590,0.48213655,85.057,85.022,0.47763679]
[1771035015285,11.75696012,85.056,85.022,0.47763679]
[1771035015592,0.48213655,85.055,85.022,0.47763679]
[1771035020183,11.75723657,85.054,85.022,0.47763679]
[1771035020391,0.48213655,85.053,85.022,0.47763679]
[1771035021082,3.54158082,85.05,85.016,0.47763679]
[1771035021384,3.54158082,85.05,85.015,61.9]
[1771035021385,0.48213655,85.049,85.015,61.9]
[1771035021973,0.48213655,85.039,85.007,0.47763679]
[1771035022486,0.48213655,85.037,85.007,0.47763679]
[1771035024289,0.48213655,85.035,85.007,0.47763679]
[1771035024673,0.48213655,85.04,85.02,3.54158082]
[1771035024985,0.48213655,85.04,85.021,0.47763679]
[1771035026894,0.48213655,85.047,85.021,0.47763679]
[1771035027892,0.48213655,85.045,85.021,0.47763679]
[1771035031397,0.46411109,85.043,85.021,0.47763679]
[1771035035387,11.7588956,85.042,85.021,0.47763679]
[1771035035593,11.7588956,85.042,85.004,61.9]
[1771035035594,0.46411109,85.039,85.004,0.46937717]
[1771035039591,11.75944871,85.038,85.004,0.46937717]
[1771035039899,0.4951241,85.037,85.004,0.46937717]
[1771035043802,0.4951241,85.009,84.978,0.49051448]
[1771035045405,0.4951241,85.009,84.981,0.49051448]
[1771035047495,0.4951241,85.007,84.981,0.49051448]
[1771035048890,0.4951241,85.005,84.981,0.49051448]
[1771035051302,0.4951241,85.003,84.981,0.49051448]
[1771035058122,61.12,85.022,84.96,61.9]
[1771035058123,0.4951241,84.999,84.961,0.49051448]
[1771035058509,0.4951241,84.989,84.961,0.49051448]
[1771035059516,0.4951241,84.987,84.961,0.49051448]
[1771035061128,0.47961418,84.996,84.962,0.46859347]
[1771035061425,0.47961418,84.996,84.961,11.7699771]
[1771035061426,0.47961418,84.996,84.971,0.46859347]
[1771035061605,0.47961418,84.994,84.971,0.46859347]
[1771035063127,0.47961418,84.989,84.956,0.46859347]
[1771035063309,0.47961418,84.989,84.95,0.46859347]
[1771035063504,0.47961418,84.979,84.95,0.46859347]
[1771035064423,0.47961418,84.979,84.95,3.54158082]
[1771035064610,0.47961418,84.979,84.951,0.46859347]
[1771035065524,0.47961418,84.979,84.953,0.46859347]
[1771035066930,11.76599136,84.991,84.961,0.46859347]
[1771035067222,12.24560554,84.991,84.961,0.46859347]
[1771035067814,0.47961418,84.99,84.961,0.46859347]
[1771035069113,0.47961418,84.99,84.96,3.54158082]
[1771035069114,0.47961418,84.99,84.963,0.46859347]
[1771035069321,0.47961418,84.996,84.963,0.46859347]
[1771035071740,0.47961418,85.001,84.971,0.46859347]
[1771035071925,0.47961418,85.009,84.971,0.46859347]
[1771035072121,0.47961418,85.009,84.964,11.76969069]
[1771035072122,0.47961418,85.026,84.991,0.46859347]
[1771035075135,0.47961418,85.019,84.991,0.46859347]
[1771035077629,0.47961418,85.017,84.991,0.46859347]
[1771035079837,11.76249176,85.016,84.991,0.46859347]
[1771035080016,3.54880031,85.01,84.981,0.46859347]
[1771035080222,0.47961418,85.009,84.981,0.46859347]
[1771035080734,0.47961418,85.009,84.967,11.76919174]
[1771035080735,0.47961418,84.999,84.964,0.46859347]
[1771035084037,0.47961418,84.989,84.951,0.46859347]
[1771035087835,0.47961418,84.987,84.951,0.46859347]
[1771035088536,0.47961418,84.987,84.936,29.43381035]
[1771035088537,0.47961418,84.992,84.97,3.54880031]
[1771035088727,0.47961418,84.992,84.971,0.46859347]
[1771035089439,11.76595168,84.991,84.971,0.46859347]
[1771035089642,12.24556586,84.991,84.971,0.46859347]
[1771035091642,0.49114362,84.99,84.971,0.46859347]
[1771035093247,11.7661347,84.99,84.971,0.46859347]
[1771035093443,0.49114362,84.989,84.971,0.46859347]
[1771035110564,0.46486633,84.987,84.967,0.45127185]
[1771035121792,0.49607297,85.001,84.971,0.48216358]
[1771035122496,0.49607297,84.999,84.971,0.48216358]
[1771035122678,0.49607297,84.999,84.98,3.54880031]
[1771035122991,0.49607297,85.008,84.982,0.48216358]
[1771035123671,0.49607297,85.008,84.99,3.54880031]
[1771035123877,0.49607297,85.008,84.991,0.48216358]
[1771035127994,0.49607297,85.029,84.991,0.48216358]
[1771035128187,0.49607297,85.029,85.001,0.48216358]
[1771035129700,0.49607297,85.025,85.001,0.48216358]
[1771035129902,0.49607297,85.038,85.01,3.54880031]
[1771035130097,0.49607297,85.038,85.011,0.48216358]
[1771035132885,0.49607297,85.036,85.011,0.48216358]
[1771035134314,0.49607297,85.019,84.979,0.48216358]
[1771035134600,0.49607297,85.019,84.991,0.48216358]
[1771035134784,0.49607297,85.019,84.99,3.5450293]
[1771035134785,0.49607297,85.019,85.001,0.48216358]
[1771035135820,11.76019631,85.033,85.011,0.48216358]
[1771035136108,29.3953333,85.048,85.011,0.48216358]
[1771035136109,12.25561165,85.038,85.011,0.48216358]
[1771035136310,0.49607297,85.037,85.011,0.48216358]
[1771035136683,0.49607297,85.042,85.021,0.48216358]
[1771035136909,0.49607297,85.058,85.021,0.48216358]
[1771035137487,0.49607297,85.058,85.031,0.48216358]
[1771035140697,0.49607297,85.056,85.031,0.48216358]
[1771035142093,11.75709834,85.055,85.031,0.48216358]
[1771035142293,0.49607297,85.054,85.031,0.48216358]
[1771035146916,0.49607297,85.054,85.04,3.5450293]
[1771035147799,0.49607297,85.054,85.04,4.02719288]
[1771035149519,0.49607297,85.054,85.033,0.48216358]
[1771035150115,0.49607297,85.054,85.04,3.5450293]
[1771035150522,0.49607297,85.054,85.033,0.48216358]
[1771035152807,0.49607297,85.054,85.04,3.5450293]
[1771035153622,0.49607297,85.054,85.033,0.48216358]
[1771035155922,0.49607297,85.054,85.04,3.5450293]
[1771035164644,0.49607297,85.054,85.032,0.4504961]
[1771035173517,0.49881139,85.052,85.032,0.4504961]
[1771035174836,0.49881139,85.05,85.032,0.4504961]
[1771035179520,0.49881139,85.048,85.032,0.4504961]
[1771035179931,0.49881139,85.048,85.02,3.5450293]
[1771035180436,0.49881139,85.048,85.021,0.4504961]
[1771035182419,0.47661867,85.053,85.03,3.5450293]
[1771035184538,0.47661867,85.053,85.031,0.25]
[1771035187739,0.47661867,85.051,85.031,0.25]
[1771035199380,0.47661867,85.049,85.018,54.36]
[1771035199536,0.47661867,85.049,85.008,54.56]
[1771035199742,0.47661867,85.049,85.009,0.25]
[1771035199953,0.47661867,85.049,85.011,0.25]
[1771035201443,0.47661867,85.047,85.021,0.25]
[1771035202761,0.47661867,85.047,85.02,3.54319604]
[1771035202762,0.47661867,85.055,85.031,0.25]
[1771035212061,0.47661867,85.055,85.036,0.25]
[1771035217571,0.47661867,85.055,85.033,11.76001044]
[1771035217889,0.47661867,85.055,85.034,0.25]
[1771035219078,0.47661867,85.055,85.04,3.54319604]
[1771035223374,0.47106996,85.062,85.041,0.25]
[1771035233682,0.47106996,85.06,85.041,0.25]
[1771035234067,0.47106996,85.06,85.032,0.25]
[1771035234380,0.47106996,85.06,85.04,3.54319604]
[1771035236484,0.47106996,85.06,85.02,61.9]
[1771035236485,0.47106996,85.058,85.02,3.54319604]
[1771035236993,0.47106996,85.058,85.02,3.79319604]
[1771035237675,11.75682189,85.057,85.021,0.25]
[1771035237986,0.47106996,85.056,85.021,0.25]
[1771035239787,0.47106996,85.054,85.021,0.25]
[1771035243794,0.46181118,85.052,85.021,0.25]
[1771035243986,0.46181118,85.049,85.012,0.25]
[1771035244287,0.46181118,85.049,85.011,11.76318358]
[1771035244590,0.46181118,85.049,85.012,0.25]
[1771035245770,0.46181118,85.047,85.01,3.54319604]
[1771035245975,3.54319604,85.04,85.003,0.25]
[1771035246174,0.46181118,85.039,85.003,0.25]
[1771035246990,11.75944871,85.038,85.003,0.25]
[1771035247173,0.46181118,85.037,85.003,0.25]
[1771035248276,0.46181118,85.037,85.011,0.25]
[1771035262921,11.75972529,85.036,85.011,0.25]
[1771035263208,0.46181118,85.035,85.011,0.25]
[1771035265309,0.46181118,85.035,85.013,0.25]
[1771035267709,0.46181118,85.039,85.013,0.25]
[1771035269714,0.46181118,85.041,85.013,0.25]
[1771035269913,0.46181118,85.041,85.015,0.25]
[1771035270798,0.46181118,85.052,85.021,0.25]
[1771035274107,0.47286773,85.05,85.021,0.25]
[1771035274622,0.47286773,85.05,85.031,0.25]
[1771035275203,0.47286773,85.057,85.031,0.25]
[1771035277307,0.47286773,85.057,85.033,0.25]
[1771035280204,0.47286773,85.057,85.035,0.25]
[1771035284530,61.58513019,85.08,85.034,11.76000188]
[1771035284531,0.46136612,85.067,85.041,0.25]
[1771035287133,0.46136612,85.065,85.041,0.25]
[1771035293443,0.46136612,85.063,85.026,61.9]
[1771035293609,0.46136612,85.063,85.009,54.86]
[1771035293610,0.46136612,85.039,85.009,0.25]
[1771035293811,0.46136612,85.039,85.021,0.25]
[1771035294315,0.46136612,85.058,85.021,0.25]
[1771035294528,0.46136612,85.058,85.031,0.25]
[1771035294827,0.46136612,85.058,85.04,0.25]
[1771035295028,0.46136612,85.058,85.03,3.54513019]
[1771035295218,0.46136612,85.058,85.031,0.25]
[1771035299034,0.46136612,85.058,85.04,3.54513019]
[1771035299339,0.46136612,85.058,85.031,0.25]
[1771035301018,0.45256388,85.056,85.031,0.25]
[1771035301833,0.45256388,85.056,85.03,3.54513019]
[1771035302035,0.45256388,85.056,85.031,0.25]
[1771035302235,0.45256388,85.056,85.03,3.79513019]
[1771035302618,0.45256388,85.056,85.031,0.25]
[1771035306933,0.45256388,85.056,85.041,0.25]
[1771035307135,0.45256388,85.056,85.04,3.54513019]
[1771035307334,0.45256388,85.056,85.036,0.25]
[1771035311741,0.45256388,85.056,85.031,0.25]
[1771035313634,0.45256388,85.054,85.021,0.25]
[1771035314034,0.45256388,85.054,85.031,0.25]
[1771035320660,0.45256388,85.054,85.033,0.25]
[1771035323575,0.45256388,85.054,85.034,11.76000188]
[1771035323775,0.45256388,85.054,85.03,3.54320403]
[1771035325780,0.45256388,85.054,85.03,3.79320403]
[1771035327379,0.45256388,85.054,85.031,0.25]
[1771035334093,0.46979741,85.052,85.03,3.54320403]
[1771035334401,0.46979741,85.052,85.03,3.79320403]
[1771035334598,0.46979741,85.052,85.031,0.25]
[1771035336298,0.46979741,85.052,85.015,55.04]
[1771035336608,0.46979741,85.049,85.012,0.25]
[1771035337699,0.46979741,85.049,85.02,3.54320403]
[1771035338885,0.46979741,85.049,85.019,0.25]
[1771035340388,0.46979741,85.049,85.02,3.79320403]
[1771035341199,0.46979741,85.049,85.02,0.25]
[1771035341402,0.46979741,85.049,85.02,3.79320403]
[1771035341697,0.46979741,85.049,85.021,0.25]
[1771035345892,0.48563315,85.047,85.021,0.25]
[1771035346409,0.48563315,85.047,85.013,0.25]
[1771035346714,0.48563315,85.047,85.011,0.25]
[1771035348912,11.75834254,85.046,85.011,0.25]
[1771035349104,0.48563315,85.045,85.011,0.25]
[1771035354287,0.48563315,85.043,85.011,0.25]
[1771035354490,0.48563315,85.029,84.993,0.25]
[1771035354706,3.54320403,85.02,84.981,0.25]
[1771035354900,0.48563315,85.019,84.978,0.25]
[1771035355092,0.48563315,85.018,84.978,0.25]
[1771035355294,0.48563315,85.009,84.978,0.25]
[1771035356204,0.48563315,85.009,84.97,3.54320403]
[1771035356397,0.48563315,85.007,84.971,0.25]
[1771035356793,0.48563315,84.999,84.971,0.25]
[1771035357012,0.48563315,84.989,84.956,0.25]
[1771035358110,3.54320403,84.98,84.951,0.25]
[1771035358294,0.48563315,84.979,84.951,0.25]
[1771035359007,0.48563315,84.977,84.946,0.25]
[1771035359817,0.48563315,84.977,84.95,3.54320403]
[1771035360007,0.48563315,84.977,84.951,0.25]
[1771035363897,11.76802861,84.976,84.951,0.25]
[1771035364103,0.4896037,84.975,84.951,0.25]
[1771035367019,0.4896037,84.973,84.95,3.54320403]
[1771035367319,0.4896037,84.973,84.942,0.25]
[1771035368799,11.76830559,84.974,84.94,3.74320403]
[1771035368800,0.4896037,84.959,84.94,0.2]
[1771035370717,0.4896037,84.975,84.941,0.25]
[1771035371025,0.4896037,84.988,84.951,0.25]
[1771035372010,0.4896037,84.988,84.961,0.25]
[1771035372729,0.4896037,84.986,84.961,0.25]
[1771035373625,0.4896037,84.984,84.961,0.25]
[1771035374429,4.61729252,85.012,84.961,0.25]
[1771035374430,0.4896037,84.999,84.961,0.25]
[1771035374726,0.4896037,85.023,84.981,0.25]
[1771035374929,0.4896037,85.022,84.981,0.25]
[1771035375229,0.4896037,84.999,84.96,3.54320403]